bitfinex-derivatives/quotes_SOLF0:USTF0_20251002
["timestamp","ask_amount","ask_price","bid_price","bid_amount"]
[1759423583343,1.70263987,227.44,227.43,0.03208214]
[1759423584544,113.16263987,227.44,227.43,0.03208214]
[1759423584740,111.46,227.44,227.43,0.03208214]
[1759423584935,113.16263987,227.44,227.43,0.03208214]
[1759423585737,1.70263987,227.44,227.43,0.03208214]
[1759423586343,113.16263987,227.44,227.43,0.03208214]
[1759423586939,113.60263987,227.44,227.32,7.23]
[1759423587241,111.46,227.44,227.32,7.23]
[1759423587436,0.03354107,227.46,227.34,7.23]
[1759423587641,0.03354107,227.46,227.35,1.70263987]
[1759423587843,63.34,227.45,227.37,1.70263987]
[1759423588646,0.03229717,227.42,227.37,1.70263987]
[1759423588838,0.03229717,227.42,227.38,7.23]
[1759423589038,0.03229717,227.42,227.37,63.23743987]
[1759423589241,0.03229717,227.42,227.39,1.70263987]
[1759423589545,0.03229717,227.42,227.41,8.93263987]
[1759423590142,0.03229717,227.42,227.41,12.88773987]
[1759423590643,124.79698931,227.5,227.41,12.88773987]
[1759423590644,13.37698931,227.5,227.44,3.9545]
[1759423590844,324.2727,227.55,227.46,1.70263987]
[1759423591046,3.01893153,227.54,227.46,1.70263987]
[1759423591236,111.42,227.53,227.46,1.70263987]
[1759423591440,3.9531,227.53,227.46,1.70263987]
[1759423591747,3.9531,227.53,227.44,3.9545]
[1759423591748,111.42,227.52,227.44,1.70263987]
[1759423592245,3.9538,227.49,227.47,0.0281137]
[1759423592446,1.70263987,227.48,227.47,0.0281137]
[1759423593046,1.70263987,227.48,227.39,1.70263987]
[1759423593247,3.9538,227.49,227.39,1.70263987]
[1759423593450,1.70263987,227.48,227.39,1.70263987]
[1759423593661,1.70263987,227.48,227.45,0.03004243]
[1759423594140,3.9538,227.49,227.45,0.03004243]
[1759423594542,1.70263987,227.5,227.45,0.03004243]
[1759423594846,3.9534,227.52,227.45,0.03004243]
[1759423595146,111.38,227.51,227.45,0.03004243]
[1759423595946,3.9536,227.5,227.45,0.03004243]
[1759423596549,111.38,227.51,227.45,0.03004243]
[1759423596950,14.63738991,227.53,227.45,0.03004243]
[1759423597150,111.38,227.5,227.45,0.03004243]
[1759423598646,111.36,227.49,227.45,7.70004243]
[1759423598851,111.36,227.49,227.45,0.03004243]
[1759423599551,111.36,227.49,227.46,7.67]
[1759423599855,111.36,227.51,227.46,7.67]
[1759423600659,111.36,227.51,227.46,11.6242]
[1759423601457,111.36,227.51,227.45,1.7326823]
[1759423601852,113.06263987,227.51,227.45,0.03004243]
[1759423602057,1.70263987,227.51,227.45,0.03004243]
[1759423602350,111.34,227.5,227.45,0.03004243]
[1759423603055,333.23912247,227.55,227.45,0.03004243]
[1759423603260,114.35588548,227.54,227.46,1.70263987]
[1759423603464,111.34,227.54,227.46,1.70263987]
[1759423603957,333.23912247,227.55,227.48,5.65653987]
[1759423604259,111.32,227.54,227.48,3.9539]
[1759423604462,111.32,227.54,227.48,5.65653987]
[1759423605561,111.32,227.54,227.48,1.70263987]
[1759423606864,111.32,227.54,227.47,7.67]
[1759423607068,333.23912247,227.55,227.47,9.37263987]
[1759423607264,333.23912247,227.55,227.49,1.70263987]
[1759423607561,111.3,227.54,227.49,1.70263987]
[1759423608060,111.3,227.54,227.49,9.37263987]
[1759423608658,111.3,227.54,227.49,0.03065527]
[1759423608860,1.70263987,227.53,227.49,0.03065527]
[1759423609168,5.65623987,227.51,227.49,0.03065527]
[1759423609367,111.3,227.5,227.49,0.03065527]
[1759423612068,113.00263987,227.5,227.49,0.03065527]
[1759423612470,12.91912247,227.55,227.49,0.03065527]
[1759423612768,111.28,227.55,227.49,0.03065527]
[1759423612974,124.42306974,227.55,227.49,1.73329514]
[1759423613163,13.14306974,227.55,227.5,7.67]
[1759423613473,66.35568806,227.63,227.49,1.73329514]
[1759423613474,93.32,227.63,227.52,9.37263987]
[1759423613664,2.97887573,227.62,227.58,1.70263987]
[1759423613971,3.9516,227.62,227.58,1.70263987]
[1759423614166,4.88908806,227.73,227.61,1.70263987]
[1759423614364,111.26,227.72,227.59,7.67]
[1759423614575,111.26,227.72,227.64,1.70263987]
[1759423614872,62.18964111,227.78,227.59,7.67]
[1759423614873,111.26,227.75,227.7,1.70263987]
[1759423615169,124.58237417,227.75,227.7,1.70263987]
[1759423615473,4.88908806,227.88,227.73,1.70263987]
[1759423615774,111.42,227.87,227.79,1.70263987]
[1759423616070,3.9476,227.85,227.79,1.70263987]
[1759423616261,61.4108,227.84,227.71,7.67]
[1759423616466,61.4177,227.81,227.7,0.02792446]
[1759423616661,61.4226,227.79,227.66,7.67]
[1759423617075,111.72,227.8,227.66,7.67]
[1759423617375,3.9488,227.78,227.73,0.03288821]
[1759423617673,111.72,227.8,227.73,0.03288821]
[1759423617971,3.949,227.77,227.73,0.03288821]
[1759423618167,61.4253,227.78,227.73,0.03288821]
[1759423618374,3.9493,227.75,227.73,0.03288821]
[1759423618568,111.68,227.74,227.73,0.03288821]
[1759423618871,3.9501,227.71,227.61,7.67]
[1759423619075,61.4435,227.72,227.61,7.67]
[1759423619268,61.4413,227.73,227.61,7.67]
[1759423619269,61.4448,227.71,227.61,7.67]
[1759423619571,3.9504,227.69,227.61,7.67]
[1759423619876,111.64,227.68,227.61,7.67]
[1759423620073,111.64,227.68,227.56,4.41191085]
[1759423620270,111.64,227.68,227.56,12.08191085]
[1759423620471,111.6916597,227.67,227.57,7.67]
[1759423620671,111.66,227.66,227.57,7.67]
[1759423621170,111.78,227.66,227.57,7.67]
[1759423621775,0.0316597,227.67,227.57,7.67]
[1759423622275,63.3116597,227.67,227.57,7.67]
[1759423623577,3.9513,227.64,227.57,7.67]
[1759423624076,3.9513,227.64,227.51,7.85]
[1759423624268,3.9513,227.64,227.52,3.9532]
[1759423625476,0.03222233,227.6,227.52,3.9532]
[1759423625776,102.61222233,227.6,227.52,3.9532]
[1759423627169,102.61222233,227.6,227.51,7.85]
[1759423627777,106.56412233,227.6,227.51,7.85]
[1759423628174,106.56412233,227.6,227.48,3.9538]
[1759423628175,102.61222233,227.6,227.48,3.9538]
[1759423628376,102.61222233,227.6,227.47,7.85]
[1759423628377,3.9522,227.58,227.47,7.85]
[1759423628778,111.5,227.57,227.47,7.85]
[1759423629582,111.5,227.57,227.48,3.9539]
[1759423629877,0.03293666,227.54,227.48,3.9539]
[1759423630078,0.03293666,227.54,227.47,7.85]
[1759423630477,0.03293666,227.54,227.41,7.85]
[1759423631479,61.52383666,227.54,227.41,7.85]
[1759423631780,64.47398417,227.53,227.41,7.85]
[1759423631976,61.4928,227.53,227.41,7.85]
[1759423632476,3.9538,227.49,227.41,7.85]
[1759423632777,111.44,227.48,227.41,7.85]
[1759423632984,111.44,227.48,227.36,7.85]
[1759423633177,3.9545,227.45,227.36,7.85]
[1759423633477,61.5092,227.47,227.36,7.85]
[1759423633783,111.44,227.48,227.36,7.85]
[1759423634082,3.00027594,227.47,227.36,7.85]
[1759423634279,111.44,227.48,227.36,7.85]
[1759423634481,0.0316222,227.44,227.36,7.85]
[1759423635276,91.74,227.43,227.36,7.85]
[1759423636777,91.74,227.43,227.32,7.85]
[1759423637485,3.955,227.42,227.32,11.8067]
[1759423637780,111.28,227.41,227.32,11.8067]
[1759423637980,111.28,227.41,227.32,7.85]
[1759423638181,3.98604838,227.4,227.32,7.85]
[1759423638583,0.03074838,227.4,227.29,3.9571]
[1759423638783,3.9557,227.38,227.27,7.85]
[1759423639182,3.956,227.36,227.27,7.85]
[1759423639390,61.5333,227.38,227.27,7.85]
[1759423639688,61.5204,227.43,227.27,7.85]
[1759423639887,3.9554,227.4,227.27,11.8075]
[1759423640189,0.03008175,227.35,227.26,7.85]
[1759423641681,0.03008175,227.35,227.29,3.9571]
[1759423641883,0.03008175,227.35,227.29,11.8071]
[1759423642390,0.03008175,227.35,227.31,3.9568]
[1759423642590,0.03008175,227.35,227.32,7.85]
[1759423643990,0.03008175,227.35,227.28,3.9572]
[1759423644392,0.03008175,227.35,227.3,3.957]
[1759423644688,0.03008175,227.35,227.31,7.19]
[1759423645487,0.03008175,227.35,227.27,68.7524]
[1759423645691,0.03008175,227.35,227.3,7.19]
[1759423646588,0.03008175,227.35,227.29,61.5572]
[1759423646786,0.03008175,227.35,227.3,7.19]
[1759423646988,0.03008175,227.35,227.34,3.9563]
[1759423647187,0.03008175,227.35,227.34,11.1463]
[1759423649589,0.03008175,227.35,227.34,7.19]
[1759423652090,0.03008175,227.35,227.29,7.16]
[1759423652897,0.03008175,227.35,227.28,7.16]
[1759423654298,0.03008175,227.35,227.29,61.5556]
[1759423654497,0.03008175,227.35,227.34,7.16]
[1759423661394,61.4894,227.55,227.35,7.16]
[1759423661395,319.86,227.48,227.35,7.16]
[1759423662103,319.86,227.48,227.4,3.9553]
[1759423662302,319.86,227.48,227.41,7.16]
[1759423662504,61.4859,227.56,227.41,7.16]
[1759423662807,114.29299161,227.55,227.41,7.16]
[1759423663004,2.99299161,227.54,227.42,0.03226973]
[1759423663202,2.99299161,227.57,227.43,7.16]
[1759423663395,79.48,227.56,227.43,7.16]
[1759423663706,3.64137857,227.59,227.45,7.16]
[1759423663902,111.3,227.58,227.45,7.16]
[1759423664201,111.3,227.58,227.47,7.16]
[1759423664503,13.06436766,227.59,227.49,7.16]
[1759423664705,111.3,227.6,227.49,7.16]
[1759423665406,111.3,227.6,227.54,11.1128]
[1759423665807,320.06,227.61,227.54,11.1128]
[1759423666006,320.06,227.61,227.52,0.03267752]
[1759423666007,12.29015024,227.72,227.55,7.16]
[1759423666208,107.59902222,227.71,227.55,7.16]
[1759423666402,6.94922222,227.7,227.57,3.9523]
[1759423666607,61.1,227.69,227.57,3.9523]
[1759423666799,381.4368,227.74,227.52,61.4941]
[1759423666800,2.99902222,227.68,227.56,61.4841]
[1759423667008,13.19554867,227.69,227.62,7.16]
[1759423667209,57.34,227.7,227.62,7.16]
[1759423667509,3.9497,227.73,227.62,7.16]
[1759423667510,111.26,227.73,227.62,7.16]
[1759423668006,6.94853198,227.72,227.61,0.0302943]
[1759423668306,2.99873198,227.72,227.61,0.0302943]
[1759423669003,3.9502,227.7,227.61,0.0302943]
[1759423669604,2.99873198,227.72,227.61,0.0302943]
[1759423669810,111.24,227.69,227.62,7.16]
[1759423670112,111.24,227.71,227.62,7.16]
[1759423670302,111.24,227.7,227.62,7.16]
[1759423670704,13.18138703,227.73,227.62,11.1114]
[1759423670905,111.24,227.71,227.62,11.1114]
[1759423671809,111.22,227.71,227.62,11.1114]
[1759423672209,111.22,227.71,227.64,0.03296155]
[1759423672708,320.0,227.74,227.64,0.03296155]
[1759423672907,111.22,227.73,227.64,0.03296155]
[1759423677506,111.22,227.73,227.65,3.951]
[1759423677711,111.16,227.73,227.66,7.16]
[1759423678504,61.417,227.81,227.66,7.16]
[1759423678702,111.16,227.8,227.66,7.16]
[1759423678907,115.1085,227.8,227.66,11.1107]
[1759423679108,115.1085,227.8,227.66,7.16]
[1759423679306,3.9485,227.8,227.66,7.16]
[1759423679510,111.16,227.79,227.66,7.16]
[1759423679912,111.16,227.79,227.71,0.02861677]
[1759423680314,111.16,227.78,227.71,0.02861677]
[1759423680913,13.34445196,227.8,227.71,0.02861677]
[1759423681116,111.14,227.79,227.71,0.02861677]
[1759423681316,111.14,227.78,227.71,0.02861677]
[1759423681709,3.9485,227.79,227.71,0.02861677]
[1759423681908,111.14,227.77,227.71,0.02861677]
[1759423682113,111.14,227.76,227.68,3.9503]
[1759423682418,111.14,227.76,227.7,3.95]
[1759423682612,111.14,227.76,227.72,0.03220743]
[1759423682820,111.14,227.76,227.72,11.44190743]
[1759423683211,111.14,227.76,227.73,7.46]
[1759423683520,13.35426984,227.8,227.74,3.9494]
[1759423683721,111.12,227.79,227.74,3.9494]
[1759423683918,110.32,227.79,227.74,3.9494]
[1759423684119,110.32,227.79,227.75,7.46]
[1759423684318,110.32,227.79,227.72,0.03220743]
[1759423684516,110.32,227.79,227.71,3.9498]
[1759423684717,110.32,227.79,227.7,7.46]
[1759423685021,110.32,227.79,227.73,0.03101627]
[1759423686316,3.9491,227.76,227.73,0.03101627]
[1759423686717,114.2687,227.79,227.73,0.03101627]
[1759423686918,110.32,227.79,227.73,0.03101627]
[1759423687822,61.4253,227.78,227.73,0.03101627]
[1759423688418,110.32,227.79,227.73,0.03101627]
[1759423688824,3.9492,227.76,227.73,0.03101627]
[1759423689025,111.08,227.75,227.73,0.03101627]
[1759423689524,115.0294,227.74,227.73,0.03101627]
[1759423690020,111.08,227.74,227.73,0.03101627]
[1759423691224,115.0294,227.74,227.73,0.03101627]
[1759423692222,111.08,227.74,227.73,0.03101627]
[1759423693628,111.52,227.74,227.73,0.03101627]
[1759423694426,111.5,227.74,227.73,0.03101627]
[1759423696425,3.9501,227.7,227.6,7.46]
[1759423696727,111.06,227.69,227.6,7.46]
[1759423696927,111.06,227.69,227.6,11.4118]
[1759423697132,115.0104,227.69,227.6,11.4118]
[1759423697326,111.06,227.69,227.6,7.46]
[1759423697935,111.06,227.69,227.62,3.9513]
[1759423698127,0.02786109,227.67,227.62,3.9513]
[1759423698327,0.02786109,227.67,227.6,7.46]
[1759423698536,0.02786109,227.67,227.54,7.46]
[1759423699538,3.9513,227.64,227.55,3.9527]
[1759423699736,111.06,227.63,227.55,3.9527]
[1759423699931,0.02786109,227.67,227.54,7.46]
[1759423700133,20.66,227.66,227.54,7.46]
[1759423700334,20.66,227.66,227.57,3.9522]
[1759423700533,20.66,227.66,227.54,7.46]
[1759423700738,20.66,227.66,227.56,3.9523]
[1759423701041,0.03204093,227.62,227.54,7.46]
[1759423702643,60.42,227.61,227.54,7.46]
[1759423703646,60.42,227.61,227.55,3.9527]
[1759423704646,60.42,227.61,227.54,9.29901957]
[1759423704848,60.42,227.61,227.54,7.46]
[1759423705147,3.9519,227.6,227.54,7.46]
[1759423705338,1.83901957,227.59,227.49,1.83901957]
[1759423705538,60.42,227.61,227.49,1.83901957]
[1759423705539,2.99579342,227.6,227.49,1.83901957]
[1759423705746,4.83481299,227.6,227.51,1.83901957]
[1759423706144,2.99579342,227.6,227.53,1.83901957]
[1759423706340,56.16,227.6,227.55,9.52901957]
[1759423706748,0.03267067,227.58,227.55,1.83901957]
[1759423707444,0.03267067,227.58,227.51,3.9533]
[1759423707445,0.03267067,227.58,227.53,1.83901957]
[1759423707651,3.03486612,227.58,227.53,9.52901957]
[1759423707847,3.00219545,227.57,227.53,1.83901957]
[1759423708053,3.00219545,227.57,227.51,1.83901957]
[1759423708246,3.00219545,227.56,227.49,9.52901957]
[1759423708544,6.95499545,227.55,227.45,7.69]
[1759423708742,1.87169024,227.58,227.45,7.69]
[1759423708743,4.84121502,227.54,227.45,7.69]
[1759423708942,3.00219545,227.53,227.45,7.69]
[1759423709138,114.04219545,227.52,227.45,7.69]
[1759423709343,3.00219545,227.51,227.45,7.69]
[1759423709544,3.00219545,227.5,227.44,1.83901957]
[1759423709740,3.00219545,227.49,227.44,1.83901957]
[1759423710152,3.00219545,227.48,227.44,1.83901957]
[1759423710345,3.00219545,227.5,227.44,1.83901957]
[1759423710542,3.00219545,227.5,227.41,7.69]
[1759423710741,3.00219545,227.49,227.42,1.83901957]
[1759423710950,111.04,227.48,227.44,1.83901957]
[1759423711140,0.03233247,227.51,227.46,1.83901957]
[1759423711141,111.07233247,227.51,227.46,1.83901957]
[1759423711347,111.07233247,227.51,227.47,7.55]
[1759423711743,111.04,227.51,227.47,7.55]
[1759423712347,111.07209998,227.51,227.47,7.55]
[1759423712552,111.07209998,227.51,227.46,1.83901957]
[1759423713151,3.9536,227.5,227.43,9.38901957]
[1759423713448,124.21089264,227.51,227.43,9.38901957]
[1759423714248,124.21089264,227.51,227.43,1.83901957]
[1759423714442,124.21089264,227.51,227.4,1.83901957]
[1759423714443,1.83901957,227.48,227.4,1.83901957]
[1759423714641,1.83901957,227.48,227.39,9.38901957]
[1759423714846,3.9544,227.45,227.39,9.38901957]
[1759423715048,92.8344,227.45,227.39,9.38901957]
[1759423715552,13.13879266,227.51,227.39,9.38901957]
[1759423715754,0.03014677,227.44,227.41,1.83901957]
[1759423715953,0.03014677,227.44,227.41,9.38901957]
[1759423716549,1.83901957,227.49,227.41,7.55]
[1759423717053,0.02847166,227.45,227.41,7.55]
[1759423717750,0.02847166,227.45,227.4,3.9553]
[1759423718055,0.02847166,227.45,227.44,7.55]
[1759423719953,0.02847166,227.45,227.44,11.5046]
[1759423721958,123.92944998,227.51,227.46,3.9542]
[1759423722157,12.86944998,227.51,227.47,1.83901957]
[1759423722458,111.04,227.52,227.48,7.55]
[1759423723857,111.04,227.52,227.48,7.58014122]
[1759423724153,333.20390243,227.55,227.49,7.55]
[1759423724357,111.04,227.54,227.49,7.55]
[1759423724547,111.04,227.54,227.49,9.38901957]
[1759423724747,333.20390243,227.55,227.49,9.38901957]
[1759423724959,111.04,227.54,227.49,9.38901957]
[1759423725262,111.04,227.54,227.51,1.83901957]
[1759423725451,111.04,227.54,227.51,9.38901957]
[1759423725652,111.04,227.54,227.51,7.55]
[1759423726454,111.04,227.54,227.49,1.83901957]
[1759423726750,111.04,227.54,227.48,0.03014122]
[1759423727548,3.953,227.53,227.48,0.03014122]
[1759423727753,3.953,227.53,227.49,7.55]
[1759423728860,111.04,227.54,227.49,7.55]
[1759423729354,111.04,227.54,227.5,7.55]
[1759423730654,337.15660243,227.55,227.5,7.55]
[1759423730864,111.02,227.54,227.49,1.83901957]
[1759423731560,111.02,227.54,227.48,0.03014122]
[1759423737358,1.83901957,227.53,227.48,0.03014122]
[1759423739361,111.02,227.54,227.48,0.03014122]
[1759423739564,112.85901957,227.54,227.48,0.03014122]
[1759423740060,3.00067085,227.53,227.48,0.03014122]
[1759423740466,5.79261957,227.5,227.48,0.03014122]
[1759423740661,110.96,227.49,227.38,7.55]
[1759423740861,1.83901957,227.47,227.38,7.55]
[1759423741162,5.79351957,227.45,227.38,7.55]
[1759423741465,1.83901957,227.43,227.33,9.66901957]
[1759423741764,1.83901957,227.41,227.33,7.83]
[1759423741958,110.96,227.4,227.33,7.83]
[1759423742359,110.99061028,227.4,227.33,7.83]
[1759423742560,110.99061028,227.4,227.33,11.7863]
[1759423743468,110.99061028,227.4,227.35,7.83]
[1759423743761,0.03061028,227.4,227.34,1.83901957]
[1759423743966,0.03061028,227.4,227.37,7.83]
[1759423744163,0.03061028,227.4,227.36,1.83901957]
[1759423744363,0.03061028,227.4,227.38,3.9556]
[1759423744868,0.03061028,227.4,227.38,11.7856]
[1759423745364,0.03061028,227.4,227.39,7.83]
[1759423746367,41.68664314,227.49,227.43,7.83]
[1759423746560,38.68,227.49,227.44,9.66901957]
[1759423746760,38.68,227.49,227.44,1.83901957]
[1759423746957,38.68,227.49,227.45,7.83]
[1759423747267,3.00924908,227.48,227.44,1.83901957]
[1759423747467,3.00924908,227.48,227.44,9.66901957]
[1759423747765,3.00924908,227.48,227.45,0.03343394]
[1759423748368,3.00924908,227.47,227.45,0.03343394]
[1759423748569,3.00924908,227.48,227.45,0.03343394]
[1759423748769,3.00924908,227.47,227.45,0.03343394]
[1759423749663,3.00924908,227.46,227.45,0.03343394]
[1759423749866,3.00924908,227.47,227.45,0.03343394]
[1759423750069,3.00924908,227.46,227.45,0.03343394]
[1759423750267,3.00924908,227.48,227.45,0.03343394]
[1759423750465,3.00924908,227.47,227.45,0.03343394]
[1759423750665,3.00924908,227.48,227.45,0.03343394]
[1759423750963,3.00924908,227.47,227.45,0.03343394]
[1759423751168,3.00924908,227.48,227.45,0.03343394]
[1759423751367,3.00924908,227.47,227.45,0.03343394]
[1759423751565,3.00924908,227.46,227.45,0.03343394]
[1759423754272,3.00924908,227.46,227.35,9.66901957]
[1759423754568,61.5061,227.48,227.35,9.66901957]
[1759423754569,1.83901957,227.44,227.35,7.83]
[1759423754772,113.90924908,227.43,227.35,7.83]
[1759423755073,110.9,227.43,227.35,7.83]
[1759423755368,110.9,227.43,227.35,11.786]
[1759423755768,0.02962598,227.41,227.35,7.83]
[1759423756675,0.02962598,227.41,227.35,9.66901957]
[1759423757069,0.02962598,227.41,227.35,7.83]
[1759423757275,0.02962598,227.41,227.38,1.83901957]
[1759423757475,0.02962598,227.41,227.39,7.83]
[1759423757676,0.02962598,227.41,227.38,1.83901957]
[1759423757876,0.02962598,227.41,227.39,7.83]
[1759423758071,0.02962598,227.41,227.4,7.83]
[1759423758267,0.02962598,227.41,227.35,2.87716564]
[1759423758466,0.02962598,227.41,227.35,7.83]
[1759423759676,0.02962598,227.41,227.37,7.83]
[1759423760069,0.02962598,227.41,227.34,3.9563]
[1759423760274,0.02962598,227.41,227.31,7.83]
[1759423760775,0.02962598,227.41,227.32,7.83]
[1759423760969,0.02962598,227.41,227.34,7.83]
[1759423762680,0.02962598,227.41,227.37,7.83]
[1759423762878,0.02962598,227.41,227.36,3.9559]
[1759423763077,0.02962598,227.41,227.37,7.83]
[1759423763286,0.02962598,227.41,227.34,61.5418]
[1759423763482,0.02962598,227.41,227.35,7.83]
[1759423763878,0.02962598,227.41,227.34,7.27]
[1759423764586,0.02962598,227.41,227.34,11.2261]
[1759423765880,0.02962598,227.41,227.35,3.9559]
[1759423766983,0.02962598,227.41,227.37,7.27]
[1759423767684,0.02962598,227.41,227.36,3.9558]
[1759423768086,0.02962598,227.41,227.37,7.27]
[1759423768488,0.02962598,227.41,227.36,3.9558]
[1759423768780,0.02962598,227.41,227.37,7.27]
[1759423768979,0.02962598,227.41,227.36,3.9558]
[1759423769589,0.02962598,227.41,227.38,7.27]
[1759423770281,0.02962598,227.41,227.33,7.27]
[1759423770482,0.02962598,227.41,227.35,7.27]
[1759423770989,3.01776355,227.46,227.35,7.27]
[1759423771186,3.01776355,227.47,227.35,7.27]
[1759423771376,3.01776355,227.46,227.35,7.27]
[1759423771582,0.03091776,227.4,227.35,7.27]
[1759423771779,0.03091776,227.4,227.38,7.23]
[1759423772579,0.03091776,227.4,227.39,7.23]
[1759423773181,0.03091776,227.4,227.36,7.23]
[1759423774288,0.03091776,227.4,227.29,7.23]
[1759423775588,3.98621776,227.4,227.33,7.23]
[1759423775793,0.03091776,227.4,227.33,7.23]
[1759423776586,3.01776355,227.39,227.29,7.23]
[1759423776991,107.67326355,227.39,227.29,11.187]
[1759423777291,104.6555,227.39,227.29,11.187]
[1759423777491,3.9557,227.38,227.29,11.187]
[1759423777693,3.02079629,227.38,227.29,11.187]
[1759423778493,3.02079629,227.38,227.3,3.9568]
[1759423779589,6.97649629,227.38,227.3,3.9568]
[1759423779782,3.02079629,227.38,227.3,3.9568]
[1759423780594,3.02079629,227.38,227.32,7.23]
[1759423780795,0.03091776,227.4,227.32,7.23]
[1759423780989,0.03091776,227.4,227.33,7.23]
[1759423781291,17.28189111,227.46,227.37,7.23]
[1759423781489,3.02189111,227.45,227.37,7.23]
[1759423781685,3.02189111,227.44,227.35,7.23]
[1759423781883,4.88908806,227.5,227.35,7.23]
[1759423781884,0.03271764,227.39,227.38,61.5306]
[1759423782088,3.02189111,227.48,227.39,7.23]
[1759423782289,3.02189111,227.47,227.41,2.87716564]
[1759423782488,3.02189111,227.46,227.42,3.9548]
[1759423782685,3.9533,227.51,227.42,7.23]
[1759423782893,3.02302039,227.5,227.42,7.23]
[1759423783084,3.02302039,227.49,227.42,7.23]
[1759423783295,3.02302039,227.48,227.42,7.23]
[1759423783492,3.02302039,227.47,227.42,7.23]
[1759423783696,3.02302039,227.47,227.41,2.87716564]
[1759423783697,3.02302039,227.46,227.45,7.23]
[1759423783898,3.02302039,227.5,227.45,7.23]
[1759423784191,3.02302039,227.49,227.44,0.0292909]
[1759423784396,3.02302039,227.48,227.44,0.0292909]
[1759423784598,3.02302039,227.47,227.45,7.23]
[1759423784796,3.02302039,227.46,227.45,7.23]
[1759423785200,3.02302039,227.51,227.45,7.23]
[1759423785500,3.02302039,227.5,227.44,7.2592909]
[1759423785696,3.02302039,227.49,227.44,0.0292909]
[1759423785893,3.02302039,227.48,227.44,0.0292909]
[1759423786091,3.02626856,227.47,227.44,0.0292909]
[1759423786395,3.02637824,227.46,227.44,0.0292909]
[1759423786594,3.9538,227.49,227.44,7.2592909]
[1759423786802,3.02611028,227.48,227.44,0.0292909]
[1759423787098,67.41257592,227.47,227.38,7.23]
[1759423787394,3.9545,227.44,227.38,7.23]
[1759423787798,3.02688833,227.43,227.32,7.23]
[1759423787998,3.02688833,227.42,227.32,7.23]
[1759423788198,3.02688833,227.41,227.32,7.23]
[1759423788391,110.74,227.46,227.32,7.23]
[1759423788590,3.9549,227.43,227.33,3.9563]
[1759423788892,3.02707363,227.42,227.33,3.9563]
[1759423789091,0.03063665,227.39,227.35,3.9561]
[1759423790195,0.03063665,227.39,227.36,7.23]
[1759423790400,0.03063665,227.39,227.35,3.9561]
[1759423790802,0.03063665,227.39,227.36,7.23]
[1759423791106,0.03063665,227.39,227.35,3.9561]
[1759423791408,0.03063665,227.39,227.33,7.23]
[1759423791805,0.03063665,227.39,227.37,7.23]
[1759423792010,0.03063665,227.39,227.36,3.9558]
[1759423792210,0.03063665,227.39,227.37,7.23]
[1759423792411,0.03063665,227.39,227.36,3.9558]
[1759423793012,0.03063665,227.39,227.34,7.23]
[1759423793214,0.03063665,227.39,227.32,7.23]
[1759423794810,0.03063665,227.39,227.36,7.23]
[1759423795016,0.03063665,227.39,227.35,3.9559]
[1759423795310,4.88908806,227.51,227.38,7.23]
[1759423795511,3.02797531,227.5,227.38,7.23]
[1759423795712,6.98167531,227.49,227.4,3.9551]
[1759423795911,3.02797531,227.48,227.4,2.87716564]
[1759423796108,3.02797531,227.47,227.41,7.23]
[1759423796317,3.02797531,227.46,227.42,3.9547]
[1759423796513,3.9534,227.51,227.43,7.23]
[1759423796813,3.02752295,227.5,227.43,7.23]
[1759423797014,3.02752295,227.49,227.43,7.23]
[1759423797215,3.02752295,227.48,227.42,11.21783622]
[1759423797405,3.02752295,227.47,227.43,7.23]
[1759423797612,3.02752295,227.46,227.42,7.26313622]
[1759423797910,3.02752295,227.45,227.42,7.26313622]
[1759423798115,2.87716564,227.52,227.42,7.26313622]
[1759423798416,3.02732927,227.51,227.42,7.26313622]